[Event "*** Titled Tuesday Blitz"]
[Site "Chess.com"]
[Date "2020.04.21"]
[Round "9"]
[White "Tpros"]
[Black "DACF2905"]
[Result "1-0"]
[WhiteElo "2394"]
[BlackElo "2179"]
[TimeControl "180+1"]
[EndTime "11:50:00 PDT"]
[Termination "Tpros won by resignation"]

1. c4 {[%clk 0:03:00.9]} 1... e5 {[%clk 0:02:57.5]} 2. d3 {[%clk 0:03:00]} 2...
Nf6 {[%clk 0:02:54.3]} 3. a3 {[%clk 0:02:59]} 3... c6 {[%clk 0:02:52.4]} 4. Nf3
{[%clk 0:02:44.2]} 4... Qc7 {[%clk 0:02:45]} 5. Qc2 {[%clk 0:02:41.9]} 5... d6
{[%clk 0:02:43.3]} 6. Nc3 {[%clk 0:02:41.1]} 6... Be7 {[%clk 0:02:42.5]} 7. g3
{[%clk 0:02:39.7]} 7... h6 {[%clk 0:02:42.2]} 8. Bg2 {[%clk 0:02:40.6]} 8... O-O
{[%clk 0:02:42]} 9. b4 {[%clk 0:02:39.2]} 9... a5 {[%clk 0:02:41.5]} 10. Rb1
{[%clk 0:02:38.9]} 10... Nbd7 {[%clk 0:02:39.6]} 11. b5 {[%clk 0:02:36.5]} 11...
Nc5 {[%clk 0:02:36.6]} 12. h3 {[%clk 0:02:29.5]} 12... Bf5 {[%clk 0:02:35.2]}
13. e4 {[%clk 0:02:27.5]} 13... Bh7 {[%clk 0:02:34.6]} 14. Be3 {[%clk
0:02:26.9]} 14... Ne6 {[%clk 0:02:34.2]} 15. bxc6 {[%clk 0:02:25.4]} 15... bxc6
{[%clk 0:02:34.3]} 16. O-O {[%clk 0:02:19.6]} 16... Rfb8 {[%clk 0:02:34.1]} 17.
Na4 {[%clk 0:02:17.7]} 17... c5 {[%clk 0:02:32.1]} 18. Rxb8+ {[%clk 0:02:06]}
18... Rxb8 {[%clk 0:02:31.3]} 19. Rb1 {[%clk 0:02:06.9]} 19... Nd7 {[%clk
0:02:28.7]} 20. h4 {[%clk 0:02:02.6]} 20... Nd4 {[%clk 0:02:15.3]} 21. Bxd4
{[%clk 0:01:56.7]} 21... cxd4 {[%clk 0:02:14.5]} 22. Bh3 {[%clk 0:01:51.7]}
22... Nc5 {[%clk 0:02:13.5]} 23. Nxc5 {[%clk 0:01:48.1]} 23... dxc5 {[%clk
0:02:13.5]} 24. Rb5 {[%clk 0:01:45.4]} 24... Bd6 {[%clk 0:02:05.9]} 25. a4
{[%clk 0:01:43.1]} 25... Bg6 {[%clk 0:02:00]} 26. Bg4 {[%clk 0:01:41.5]} 26...
f6 {[%clk 0:01:59.6]} 27. Be6+ {[%clk 0:01:36.4]} 27... Kf8 {[%clk 0:01:58.9]}
28. Nd2 {[%clk 0:01:33.4]} 28... Be8 {[%clk 0:01:58]} 29. Qd1 {[%clk 0:01:18.7]}
29... Bxb5 {[%clk 0:01:37.7]} 30. cxb5 {[%clk 0:01:19.6]} 30... c4 {[%clk
0:01:38.1]} 31. Nxc4 {[%clk 0:01:17.4]} 31... Qe7 {[%clk 0:01:37.6]} 32. Bd5
{[%clk 0:01:08]} 32... Bb4 {[%clk 0:01:37.6]} 33. h5 {[%clk 0:01:06.8]} 33...
Rc8 {[%clk 0:01:37.2]} 34. Qg4 {[%clk 0:01:05.7]} 34... Rd8 {[%clk 0:01:29.9]}
35. Qf5 {[%clk 0:01:03]} 35... Qd7 {[%clk 0:01:26.4]} 36. Qh7 {[%clk 0:00:58.7]}
36... Qg4 {[%clk 0:01:26]} 37. b6 {[%clk 0:00:45.1]} 37... Ke7 {[%clk
0:01:23.7]} 38. b7 {[%clk 0:00:43.1]} 38... Bd6 {[%clk 0:01:19.6]} 39. Nxa5
{[%clk 0:00:41.3]} 39... Rf8 {[%clk 0:01:13]} 40. Nc6+ {[%clk 0:00:40.6]} 40...
Kd7 {[%clk 0:01:12.8]} 41. a5 {[%clk 0:00:40.4]} 41... Kc7 {[%clk 0:00:49.2]}
42. a6 {[%clk 0:00:39]} 42... Bc5 {[%clk 0:00:49.5]} 43. a7 {[%clk 0:00:37.4]}
43... Bxa7 {[%clk 0:00:48.1]} 44. Nxa7 {[%clk 0:00:38.3]} 44... Rb8 {[%clk
0:00:44.7]} 45. Nb5+ {[%clk 0:00:34]} 45... Kb6 {[%clk 0:00:44.3]} 46. Nd6
{[%clk 0:00:31.9]} 46... Kc5 {[%clk 0:00:43.4]} 47. Nf5 {[%clk 0:00:27.9]} 47...
Qxh5 {[%clk 0:00:32.7]} 48. Qxg7 {[%clk 0:00:26.8]} 48... Qd1+ {[%clk
0:00:32.7]} 49. Kg2 {[%clk 0:00:26.1]} 49... Qxd3 {[%clk 0:00:29.9]} 50. Qc7+
{[%clk 0:00:25.1]} 50... Kb4 {[%clk 0:00:29.9]} 51. Qxb8 {[%clk 0:00:23.7]}
51... Qb5 {[%clk 0:00:28.5]} 52. Qf8+ {[%clk 0:00:22.8]} 1-0

[Event "*** Titled Tuesday Blitz"]
[Site "Chess.com"]
[Date "2020.04.21"]
[Round "9"]
[White "claudyna16"]
[Black "zmeeed67"]
[Result "1/2-1/2"]
[WhiteElo "2516"]
[BlackElo "2389"]
[TimeControl "180+1"]
[EndTime "11:50:01 PDT"]
[Termination "Game drawn by repetition"]

1. c4 {[%clk 0:03:00.9]} 1... e6 {[%clk 0:02:21.6]} 2. g3 {[%clk 0:03:00.4]}
2... d5 {[%clk 0:02:20.2]} 3. Bg2 {[%clk 0:02:59.9]} 3... Nf6 {[%clk 0:02:20.1]}
4. Nf3 {[%clk 0:02:59.1]} 4... Be7 {[%clk 0:02:18.6]} 5. O-O {[%clk 0:02:59.9]}
5... O-O {[%clk 0:02:17.5]} 6. d4 {[%clk 0:02:57.8]} 6... c6 {[%clk 0:02:16.6]}
7. Nbd2 {[%clk 0:02:57.5]} 7... Nbd7 {[%clk 0:02:15.1]} 8. Qc2 {[%clk
0:02:57.6]} 8... b6 {[%clk 0:02:14.7]} 9. e4 {[%clk 0:02:57.8]} 9... Bb7 {[%clk
0:02:12.9]} 10. e5 {[%clk 0:02:57.5]} 10... Ne8 {[%clk 0:02:12.5]} 11. b3 {[%clk
0:02:57.5]} 11... Rc8 {[%clk 0:02:11.2]} 12. Bb2 {[%clk 0:02:57]} 12... c5
{[%clk 0:02:04.5]} 13. Rad1 {[%clk 0:02:57]} 13... b5 {[%clk 0:01:47.2]} 14.
cxb5 {[%clk 0:02:49.3]} 14... cxd4 {[%clk 0:01:45.3]} 15. Qb1 {[%clk 0:02:49.5]}
15... Nc5 {[%clk 0:01:22.1]} 16. Nxd4 {[%clk 0:02:45.8]} 16... Qb6 {[%clk
0:01:16.5]} 17. Rfe1 {[%clk 0:02:44.8]} 17... Nc7 {[%clk 0:01:15.7]} 18. a4
{[%clk 0:02:43.1]} 18... a6 {[%clk 0:01:15.7]} 19. Bf1 {[%clk 0:02:33.2]} 19...
axb5 {[%clk 0:01:13.9]} 20. axb5 {[%clk 0:02:32.5]} 20... Ne4 {[%clk 0:01:06.6]}
21. Nxe4 {[%clk 0:02:02.4]} 21... dxe4 {[%clk 0:01:07.5]} 22. Ba1 {[%clk
0:02:01.3]} 22... Bb4 {[%clk 0:01:07]} 23. Re3 {[%clk 0:02:00]} 23... Nd5 {[%clk
0:01:06.4]} 24. Rxe4 {[%clk 0:01:44.6]} 24... Nc3 {[%clk 0:01:05.2]} 25. Bxc3
{[%clk 0:01:44.7]} 25... Bxc3 {[%clk 0:01:06.1]} 26. Rf4 {[%clk 0:01:40]} 26...
Rfd8 {[%clk 0:01:02.6]} 27. Nc6 {[%clk 0:01:29.5]} 27... Bxc6 {[%clk 0:00:56.7]}
28. bxc6 {[%clk 0:01:30.4]} 28... Rxd1 {[%clk 0:00:45.2]} 29. Qxd1 {[%clk
0:01:31.3]} 29... Qxc6 {[%clk 0:00:45.3]} 30. Rc4 {[%clk 0:01:26.5]} 30... Qe8
{[%clk 0:00:45]} 31. f4 {[%clk 0:01:18.2]} 31... Rxc4 {[%clk 0:00:43.9]} 32.
Bxc4 {[%clk 0:01:19.1]} 32... Bb4 {[%clk 0:00:41.9]} 33. Kg2 {[%clk 0:01:17]}
33... g6 {[%clk 0:00:42.2]} 34. Qf3 {[%clk 0:01:13.9]} 34... Kg7 {[%clk
0:00:41]} 35. Qe4 {[%clk 0:01:11]} 35... Qe7 {[%clk 0:00:40.5]} 36. h4 {[%clk
0:01:10.5]} 36... h6 {[%clk 0:00:40.8]} 37. Kh3 {[%clk 0:01:10.2]} 37... h5
{[%clk 0:00:40.7]} 38. Qc6 {[%clk 0:01:08.6]} 38... Bc5 {[%clk 0:00:39.5]} 39.
Bb5 {[%clk 0:01:05.1]} 39... Bb4 {[%clk 0:00:39.1]} 40. Qd7 {[%clk 0:01:02.9]}
40... Qxd7 {[%clk 0:00:38.9]} 41. Bxd7 {[%clk 0:01:03.8]} 41... Kf8 {[%clk
0:00:39.1]} 42. Kg2 {[%clk 0:01:03.9]} 42... Ke7 {[%clk 0:00:38.8]} 43. Bb5
{[%clk 0:01:04.3]} 43... Kd8 {[%clk 0:00:37.4]} 44. Kf3 {[%clk 0:01:04.1]} 44...
Ke7 {[%clk 0:00:37.4]} 45. g4 {[%clk 0:01:04]} 45... hxg4+ {[%clk 0:00:36.8]}
46. Kxg4 {[%clk 0:01:04.9]} 46... Kd8 {[%clk 0:00:36.8]} 47. Ba4 {[%clk
0:01:03.2]} 47... Ke7 {[%clk 0:00:36.2]} 48. h5 {[%clk 0:01:02.7]} 48... gxh5+
{[%clk 0:00:36.1]} 49. Kxh5 {[%clk 0:01:03.6]} 49... Bd2 {[%clk 0:00:36.3]} 50.
Kg4 {[%clk 0:01:03.2]} 50... Bb4 {[%clk 0:00:36.7]} 51. Bb5 {[%clk 0:01:02.7]}
51... Bd2 {[%clk 0:00:36.1]} 52. Kf3 {[%clk 0:01:02.5]} 52... Bb4 {[%clk
0:00:35.9]} 53. Ke4 {[%clk 0:01:03.4]} 53... Ba3 {[%clk 0:00:35.6]} 54. Bc6
{[%clk 0:00:59.2]} 54... Bb4 {[%clk 0:00:35]} 55. Kd3 {[%clk 0:00:58.8]} 55...
Ba3 {[%clk 0:00:34.8]} 56. Bf3 {[%clk 0:00:58.8]} 56... Bc1 {[%clk 0:00:33.8]}
57. Ke4 {[%clk 0:00:58.8]} 57... Ba3 {[%clk 0:00:33.2]} 58. Bh5 {[%clk
0:00:58.7]} 58... Bb4 {[%clk 0:00:30.9]} 59. f5 {[%clk 0:00:56.9]} 59... exf5+
{[%clk 0:00:30.4]} 60. Kxf5 {[%clk 0:00:57.8]} 60... Bc3 {[%clk 0:00:30.3]} 61.
Ke4 {[%clk 0:00:57.9]} 61... Bb4 {[%clk 0:00:30.2]} 62. Kd5 {[%clk 0:00:58.1]}
62... Ba3 {[%clk 0:00:30]} 63. Bg4 {[%clk 0:00:56.4]} 63... Bb4 {[%clk
0:00:28.4]} 64. Bf3 {[%clk 0:00:52.4]} 64... Ba3 {[%clk 0:00:26.8]} 65. Bg4
{[%clk 0:00:50.2]} 65... Bb4 {[%clk 0:00:27.7]} 66. Bf3 {[%clk 0:00:50.1]} 66...
Ba3 {[%clk 0:00:28.6]} 67. Bg4 {[%clk 0:00:50.1]} 1/2-1/2

[Event "*** Titled Tuesday Blitz"]
[Site "Chess.com"]
[Date "2020.04.21"]
[Round "9"]
[White "bakki78"]
[Black "AustrianFalcon"]
[Result "0-1"]
[WhiteElo "2770"]
[BlackElo "2643"]
[TimeControl "180+1"]
[EndTime "11:50:03 PDT"]
[Termination "AustrianFalcon won by resignation"]

1. e4 {[%clk 0:03:00.9]} 1... g6 {[%clk 0:03:00.5]} 2. d4 {[%clk 0:03:00.4]}
2... Bg7 {[%clk 0:03:01.1]} 3. Nc3 {[%clk 0:03:00.9]} 3... d6 {[%clk 0:03:00.9]}
4. f4 {[%clk 0:03:01.2]} 4... Nf6 {[%clk 0:03:00.5]} 5. Bd3 {[%clk 0:02:54.2]}
5... O-O {[%clk 0:02:58.4]} 6. e5 {[%clk 0:02:53.7]} 6... dxe5 {[%clk
0:02:53.9]} 7. dxe5 {[%clk 0:02:51.4]} 7... Nd5 {[%clk 0:02:46.6]} 8. Nxd5
{[%clk 0:02:45.8]} 8... Qxd5 {[%clk 0:02:47.5]} 9. Qf3 {[%clk 0:02:46]} 9... c6
{[%clk 0:02:19.3]} 10. Bd2 {[%clk 0:02:35.4]} 10... Bf5 {[%clk 0:02:10.2]} 11.
Bxf5 {[%clk 0:02:29.8]} 11... gxf5 {[%clk 0:02:10.6]} 12. Qxd5 {[%clk
0:02:29.1]} 12... cxd5 {[%clk 0:02:10.7]} 13. Nf3 {[%clk 0:02:29.2]} 13... Nc6
{[%clk 0:02:07.2]} 14. O-O-O {[%clk 0:02:29.7]} 14... e6 {[%clk 0:02:03.3]} 15.
h3 {[%clk 0:02:28.3]} 15... f6 {[%clk 0:01:48.7]} 16. exf6 {[%clk 0:02:27.6]}
16... Bxf6 {[%clk 0:01:47.3]} 17. g4 {[%clk 0:02:24.4]} 17... Rae8 {[%clk
0:01:32.4]} 18. Rde1 {[%clk 0:02:18]} 18... fxg4 {[%clk 0:01:18.6]} 19. hxg4
{[%clk 0:02:17.1]} 19... e5 {[%clk 0:01:19.2]} 20. fxe5 {[%clk 0:02:12.3]} 20...
Nxe5 {[%clk 0:01:18.9]} 21. Nxe5 {[%clk 0:02:06.1]} 21... Rxe5 {[%clk
0:01:17.3]} 22. Kd1 {[%clk 0:02:04.8]} 22... Rxe1+ {[%clk 0:01:10.3]} 23. Rxe1
{[%clk 0:02:04.3]} 23... Bxb2 {[%clk 0:01:10.6]} 24. Bb4 {[%clk 0:02:01.7]}
24... Rf7 {[%clk 0:01:02.4]} 25. c3 {[%clk 0:01:58]} 25... d4 {[%clk 0:01:00.7]}
26. cxd4 {[%clk 0:01:48.6]} 26... Bxd4 {[%clk 0:00:57.2]} 27. Re4 {[%clk
0:01:49.2]} 27... Rd7 {[%clk 0:00:50.6]} 28. Kc2 {[%clk 0:01:47.9]} 28... Bf6
{[%clk 0:00:47.8]} 29. Rf4 {[%clk 0:01:46.3]} 29... Kg7 {[%clk 0:00:44.4]} 30.
a3 {[%clk 0:01:35.6]} 30... Kg6 {[%clk 0:00:30.9]} 31. Rc4 {[%clk 0:01:34.7]}
31... Be5 {[%clk 0:00:28]} 32. Bd2 {[%clk 0:01:33.7]} 32... Rc7 {[%clk
0:00:27.5]} 33. Rxc7 {[%clk 0:01:33.3]} 33... Bxc7 {[%clk 0:00:28.4]} 34. a4
{[%clk 0:01:32.7]} 34... Bd8 {[%clk 0:00:24.6]} 35. Kd3 {[%clk 0:01:32.8]} 35...
Bg5 {[%clk 0:00:24.8]} 36. Bc3 {[%clk 0:01:32.5]} 36... Bf4 {[%clk 0:00:24.2]}
37. Ke4 {[%clk 0:01:31.4]} 37... Kg5 {[%clk 0:00:23.6]} 38. Kf3 {[%clk
0:01:31.5]} 38... Bd6 {[%clk 0:00:23.4]} 39. Bd4 {[%clk 0:01:29.9]} 39... a6
{[%clk 0:00:22.7]} 40. Bb6 {[%clk 0:01:29.9]} 40... Bb4 {[%clk 0:00:21.9]} 41.
Bd8+ {[%clk 0:01:28.8]} 41... Kg6 {[%clk 0:00:21.8]} 42. Bb6 {[%clk 0:01:28.8]}
42... Kf6 {[%clk 0:00:21.8]} 43. Ke4 {[%clk 0:01:29]} 43... Ke6 {[%clk
0:00:21.8]} 44. Bd8 {[%clk 0:01:25.3]} 44... Be7 {[%clk 0:00:20.5]} 45. Bb6
{[%clk 0:01:24.4]} 45... Bd6 {[%clk 0:00:20.9]} 46. Be3 {[%clk 0:01:23.5]} 46...
b5 {[%clk 0:00:20.7]} 47. axb5 {[%clk 0:01:23.3]} 47... axb5 {[%clk 0:00:21.6]}
48. Bd4 {[%clk 0:01:22.3]} 48... b4 {[%clk 0:00:20.9]} 49. Bg7 {[%clk
0:01:20.1]} 49... Be7 {[%clk 0:00:19.6]} 50. Kd3 {[%clk 0:01:19.8]} 50... Bf6
{[%clk 0:00:17.8]} 51. Bf8 {[%clk 0:01:14]} 51... b3 {[%clk 0:00:16.7]} 52. Bh6
{[%clk 0:01:13.9]} 52... Be5 {[%clk 0:00:16.6]} 53. Be3 {[%clk 0:01:12.8]} 53...
Kd5 {[%clk 0:00:16.8]} 54. Bh6 {[%clk 0:01:09.2]} 54... b2 {[%clk 0:00:17.2]}
55. Kc2 {[%clk 0:01:09]} 55... Ke4 {[%clk 0:00:17.8]} 56. Bd2 {[%clk 0:01:05.8]}
56... Kf3 {[%clk 0:00:18.1]} 57. g5 {[%clk 0:01:05.7]} 57... Kg4 {[%clk
0:00:18.3]} 58. Be3 {[%clk 0:01:05.1]} 58... Bf4 {[%clk 0:00:16.4]} 59. Bxf4
{[%clk 0:00:58.8]} 59... Kxf4 {[%clk 0:00:16.1]} 60. Kxb2 {[%clk 0:00:59.4]}
60... Kxg5 {[%clk 0:00:16.5]} 61. Kc2 {[%clk 0:01:00]} 61... Kf4 {[%clk
0:00:16.9]} 62. Kd2 {[%clk 0:01:00.3]} 62... Kf3 {[%clk 0:00:16.7]} 63. Ke1
{[%clk 0:01:00.3]} 63... Kg2 {[%clk 0:00:17.2]} 64. Ke2 {[%clk 0:01:00.8]} 64...
h5 {[%clk 0:00:17.6]} 65. Ke3 {[%clk 0:01:01.4]} 65... h4 {[%clk 0:00:18.1]} 0-1

[Event "*** Titled Tuesday Blitz"]
[Site "Chess.com"]
[Date "2020.04.21"]
[Round "9"]
[White "AlanZhang"]
[Black "QueenOfTactics90"]
[Result "0-1"]
[WhiteElo "2145"]
[BlackElo "1949"]
[TimeControl "180+1"]
[EndTime "11:50:04 PDT"]
[Termination "QueenOfTactics90 won by checkmate"]

1. e4 {[%clk 0:01:57.8]} 1... c5 {[%clk 0:02:58.7]} 2. Nf3 {[%clk 0:01:57.7]}
2... Nc6 {[%clk 0:02:58.7]} 3. d4 {[%clk 0:01:56.5]} 3... cxd4 {[%clk
0:02:59.6]} 4. Nxd4 {[%clk 0:01:57.3]} 4... g6 {[%clk 0:02:59.2]} 5. c4 {[%clk
0:01:57.1]} 5... Bg7 {[%clk 0:02:59]} 6. Be3 {[%clk 0:01:57.6]} 6... Nf6 {[%clk
0:02:59.2]} 7. Nc3 {[%clk 0:01:57.4]} 7... O-O {[%clk 0:02:59.2]} 8. Be2 {[%clk
0:01:57.3]} 8... d6 {[%clk 0:02:59.5]} 9. Qd2 {[%clk 0:01:57.3]} 9... Nxd4
{[%clk 0:02:59.2]} 10. Bxd4 {[%clk 0:01:57.3]} 10... Bd7 {[%clk 0:02:59.4]} 11.
O-O {[%clk 0:01:57.7]} 11... Bc6 {[%clk 0:02:58]} 12. f3 {[%clk 0:01:58]} 12...
a5 {[%clk 0:02:53.5]} 13. Rfc1 {[%clk 0:01:57.8]} 13... Nd7 {[%clk 0:02:52.6]}
14. Be3 {[%clk 0:01:57]} 14... Nc5 {[%clk 0:02:49.9]} 15. Rab1 {[%clk
0:01:56.4]} 15... a4 {[%clk 0:02:31.8]} 16. b4 {[%clk 0:01:55.4]} 16... axb3
{[%clk 0:02:31.6]} 17. axb3 {[%clk 0:01:56.3]} 17... Ra3 {[%clk 0:02:20.3]} 18.
Bd1 {[%clk 0:01:44.4]} 18... Qa8 {[%clk 0:02:18.1]} 19. b4 {[%clk 0:01:41.7]}
19... Na4 {[%clk 0:02:17.1]} 20. Bxa4 {[%clk 0:01:03.9]} 20... Bxa4 {[%clk
0:02:15.8]} 21. Nd5 {[%clk 0:01:02.5]} 21... Qe8 {[%clk 0:01:53.6]} 22. b5
{[%clk 0:00:55.8]} 22... e6 {[%clk 0:01:44.2]} 23. Nb6 {[%clk 0:00:47.7]} 23...
Qd8 {[%clk 0:01:33.7]} 24. Bf2 {[%clk 0:00:38.5]} 24... Bb3 {[%clk 0:01:06.7]}
25. Qb4 {[%clk 0:00:23.7]} 25... Ra2 {[%clk 0:01:04.7]} 26. Rxb3 {[%clk
0:00:18.2]} 26... Rxf2 {[%clk 0:01:04.4]} 27. Kxf2 {[%clk 0:00:17.6]} 27...
Qxb6+ {[%clk 0:01:05.3]} 28. Kf1 {[%clk 0:00:18]} 28... Ra8 {[%clk 0:01:04]} 29.
c5 {[%clk 0:00:17]} 29... dxc5 {[%clk 0:01:02.9]} 30. Qxc5 {[%clk 0:00:17.9]}
30... Qa5 {[%clk 0:00:58.8]} 31. b6 {[%clk 0:00:14]} 31... Qa2 {[%clk
0:00:52.9]} 32. Qc2 {[%clk 0:00:13.1]} 32... Qa6+ {[%clk 0:00:51.4]} 33. Qe2
{[%clk 0:00:10.7]} 33... Qa4 {[%clk 0:00:48.9]} 34. Rd3 {[%clk 0:00:09.9]} 34...
Bf8 {[%clk 0:00:43.4]} 35. Rdc3 {[%clk 0:00:09.2]} 35... Bb4 {[%clk 0:00:41.9]}
36. Rc8+ {[%clk 0:00:09.3]} 36... Rxc8 {[%clk 0:00:40.2]} 37. Rxc8+ {[%clk
0:00:08.4]} 37... Kg7 {[%clk 0:00:38.2]} 38. Qb2+ {[%clk 0:00:08.9]} 38... Kh6
{[%clk 0:00:36.3]} 39. Qc1+ {[%clk 0:00:07]} 39... Kg7 {[%clk 0:00:35.7]} 40.
Qb2+ {[%clk 0:00:06.3]} 40... Kh6 {[%clk 0:00:30.4]} 41. Qc1+ {[%clk 0:00:06.1]}
41... g5 {[%clk 0:00:28.9]} 42. Qc2 {[%clk 0:00:03.4]} 42... Qa1+ {[%clk
0:00:26.1]} 43. Kf2 {[%clk 0:00:03.4]} 43... Qe1# {[%clk 0:00:25.6]} 0-1

[Event "*** Titled Tuesday Blitz"]
[Site "Chess.com"]
[Date "2020.04.21"]
[Round "9"]
[White "zivicd"]
[Black "WiktoriaPOL"]
[Result "0-1"]
[WhiteElo "2220"]
[BlackElo "2049"]
[TimeControl "180+1"]
[EndTime "11:50:06 PDT"]
[Termination "WiktoriaPOL won by resignation"]

1. e4 {[%clk 0:03:00.9]} 1... c5 {[%clk 0:02:59.5]} 2. Nc3 {[%clk 0:03:00]} 2...
Nc6 {[%clk 0:02:56.7]} 3. g3 {[%clk 0:02:59.7]} 3... g6 {[%clk 0:02:56.4]} 4.
Bg2 {[%clk 0:02:59.5]} 4... Bg7 {[%clk 0:02:56.7]} 5. d3 {[%clk 0:03:00]} 5...
e6 {[%clk 0:02:55]} 6. Be3 {[%clk 0:02:59.3]} 6... d6 {[%clk 0:02:53.9]} 7. f4
{[%clk 0:02:58.7]} 7... Nge7 {[%clk 0:02:53.6]} 8. Nf3 {[%clk 0:02:58.5]} 8...
O-O {[%clk 0:02:53.5]} 9. h4 {[%clk 0:02:57.4]} 9... f5 {[%clk 0:02:51.4]} 10.
h5 {[%clk 0:02:56.2]} 10... Qe8 {[%clk 0:02:46.4]} 11. hxg6 {[%clk 0:02:54.2]}
11... Qxg6 {[%clk 0:02:46.3]} 12. Bf2 {[%clk 0:02:52.3]} 12... Nd4 {[%clk
0:02:45.7]} 13. Nxd4 {[%clk 0:02:32.3]} 13... Bxd4 {[%clk 0:02:44.3]} 14. Qf3
{[%clk 0:02:14.1]} 14... Bxf2+ {[%clk 0:02:42.4]} 15. Qxf2 {[%clk 0:02:11.5]}
15... Rf7 {[%clk 0:02:27.8]} 16. O-O-O {[%clk 0:02:10.8]} 16... Rg7 {[%clk
0:02:25.9]} 17. Rh3 {[%clk 0:02:07.1]} 17... a6 {[%clk 0:02:20.3]} 18. Rdh1
{[%clk 0:02:05.3]} 18... Rb8 {[%clk 0:02:16.6]} 19. Ne2 {[%clk 0:02:02.1]} 19...
b5 {[%clk 0:02:14.4]} 20. e5 {[%clk 0:01:48.2]} 20... d5 {[%clk 0:02:12.9]} 21.
Qxc5 {[%clk 0:01:47.5]} 21... Bb7 {[%clk 0:02:04.6]} 22. Qa7 {[%clk 0:01:42.6]}
22... Qe8 {[%clk 0:01:58.2]} 23. Rh6 {[%clk 0:01:37.5]} 23... Nc6 {[%clk
0:01:51.2]} 24. Qf2 {[%clk 0:01:23.2]} 24... Rc8 {[%clk 0:01:45]} 25. R1h3
{[%clk 0:01:16]} 25... Nb4 {[%clk 0:01:42.6]} 26. Nc3 {[%clk 0:01:02.4]} 26...
Qd7 {[%clk 0:01:38.3]} 27. a3 {[%clk 0:01:01.9]} 27... Nc6 {[%clk 0:01:19]} 28.
Ne2 {[%clk 0:01:01]} 28... b4 {[%clk 0:01:17.5]} 29. a4 {[%clk 0:00:48.5]} 29...
Na5 {[%clk 0:01:12.6]} 30. Kb1 {[%clk 0:00:44.1]} 30... Qxa4 {[%clk 0:01:10.8]}
31. Nd4 {[%clk 0:00:43.8]} 31... b3 {[%clk 0:00:58.5]} 32. cxb3 {[%clk
0:00:36.7]} 32... Nxb3 {[%clk 0:00:57.3]} 33. Nxb3 {[%clk 0:00:30.7]} 33... Qxb3
{[%clk 0:00:56.9]} 34. Qd2 {[%clk 0:00:30.7]} 34... a5 {[%clk 0:00:43.8]} 35.
Bf3 {[%clk 0:00:11.6]} 35... a4 {[%clk 0:00:40.5]} 36. Rxe6 {[%clk 0:00:09.7]}
36... a3 {[%clk 0:00:37]} 37. Rh2 {[%clk 0:00:09.8]} 37... Rg6 {[%clk
0:00:18.1]} 38. Rxg6+ {[%clk 0:00:08.6]} 38... hxg6 {[%clk 0:00:18]} 39. Rh1
{[%clk 0:00:08.8]} 39... Ba6 {[%clk 0:00:17.4]} 40. Be2 {[%clk 0:00:06]} 40...
a2+ {[%clk 0:00:14.7]} 41. Ka1 {[%clk 0:00:05.5]} 41... Rc2 {[%clk 0:00:14.5]}
42. Qxc2 {[%clk 0:00:02.7]} 42... Qxc2 {[%clk 0:00:14.6]} 0-1

[Event "*** Titled Tuesday Blitz"]
[Site "Chess.com"]
[Date "2020.04.21"]
[Round "9"]
[White "Milchone1"]
[Black "Algeriano22"]
[Result "0-1"]
[WhiteElo "2486"]
[BlackElo "2621"]
[TimeControl "180+1"]
[EndTime "11:50:07 PDT"]
[Termination "Algeriano22 won by resignation"]

1. Nf3 {[%clk 0:03:00.9]} 1... Nf6 {[%clk 0:02:59.2]} 2. c4 {[%clk 0:03:01.3]}
2... g6 {[%clk 0:02:59.6]} 3. Nc3 {[%clk 0:03:01.9]} 3... Bg7 {[%clk 0:03:00.2]}
4. e4 {[%clk 0:03:02.5]} 4... d6 {[%clk 0:03:00.8]} 5. d4 {[%clk 0:03:02.9]}
5... O-O {[%clk 0:03:01.4]} 6. h3 {[%clk 0:03:03.4]} 6... e5 {[%clk 0:03:01.1]}
7. dxe5 {[%clk 0:03:04.3]} 7... dxe5 {[%clk 0:02:59.9]} 8. Be3 {[%clk
0:03:05.2]} 8... Nbd7 {[%clk 0:02:58.1]} 9. Be2 {[%clk 0:03:05.3]} 9... c6
{[%clk 0:02:58.1]} 10. c5 {[%clk 0:03:05.7]} 10... Nh5 {[%clk 0:02:55.3]} 11.
Qd6 {[%clk 0:03:03.3]} 11... Re8 {[%clk 0:02:48.9]} 12. O-O-O {[%clk 0:03:02]}
12... Qa5 {[%clk 0:02:35.3]} 13. Bc4 {[%clk 0:02:28.3]} 13... Bf8 {[%clk
0:02:30.2]} 14. Qd2 {[%clk 0:02:28.7]} 14... Nxc5 {[%clk 0:02:19.5]} 15. Ng5
{[%clk 0:02:28.4]} 15... Ne6 {[%clk 0:02:19.2]} 16. g4 {[%clk 0:02:19.7]} 16...
Nhf4 {[%clk 0:02:16.9]} 17. Bxf4 {[%clk 0:02:16.7]} 17... exf4 {[%clk
0:02:14.8]} 18. Nxe6 {[%clk 0:02:09.6]} 18... Bxe6 {[%clk 0:02:13.7]} 19. Bxe6
{[%clk 0:02:10.5]} 19... Rxe6 {[%clk 0:02:14.1]} 20. Qxf4 {[%clk 0:02:11]} 20...
Bg7 {[%clk 0:02:14.3]} 21. Rd7 {[%clk 0:02:06.8]} 21... Rf8 {[%clk 0:02:12.9]}
22. Qd2 {[%clk 0:01:30.6]} 22... Bxc3 {[%clk 0:02:09.9]} 23. Qxc3 {[%clk
0:01:31.1]} 23... Qxa2 {[%clk 0:02:09.3]} 24. Rhd1 {[%clk 0:01:23.6]} 24... Rxe4
{[%clk 0:02:06.9]} 25. R7d4 {[%clk 0:01:19.9]} 25... Rxd4 {[%clk 0:01:48.9]} 26.
Qxd4 {[%clk 0:01:20.8]} 26... a5 {[%clk 0:01:32.9]} 27. h4 {[%clk 0:01:20.6]}
27... a4 {[%clk 0:01:15.5]} 28. Rd3 {[%clk 0:01:19.8]} 28... Re8 {[%clk
0:01:09.6]} 29. Re3 {[%clk 0:01:19.7]} 29... Rxe3 {[%clk 0:01:00.5]} 30. fxe3
{[%clk 0:01:20.6]} 30... Qd5 {[%clk 0:00:51.5]} 31. Qxa4 {[%clk 0:01:19.8]}
31... Kg7 {[%clk 0:00:50.3]} 32. g5 {[%clk 0:01:11.4]} 32... Qe5 {[%clk
0:00:47.7]} 33. Qb3 {[%clk 0:00:56]} 33... b5 {[%clk 0:00:46.8]} 34. Qd3 {[%clk
0:00:51]} 34... h6 {[%clk 0:00:45.7]} 35. gxh6+ {[%clk 0:00:49.5]} 35... Kxh6
{[%clk 0:00:46.6]} 36. Kc2 {[%clk 0:00:49.2]} 36... f5 {[%clk 0:00:41.2]} 37.
Qd8 {[%clk 0:00:45.2]} 37... Qc5+ {[%clk 0:00:28.3]} 38. Kb1 {[%clk 0:00:39.5]}
38... Qe5 {[%clk 0:00:24.7]} 39. Kc2 {[%clk 0:00:35.1]} 39... Qe4+ {[%clk
0:00:23.8]} 40. Kd2 {[%clk 0:00:22.3]} 40... Qd5+ {[%clk 0:00:18.6]} 41. Qxd5
{[%clk 0:00:22.9]} 41... cxd5 {[%clk 0:00:19.5]} 42. Kd3 {[%clk 0:00:23.5]}
42... Kh5 {[%clk 0:00:19.8]} 43. Kd4 {[%clk 0:00:22.1]} 43... Kxh4 {[%clk
0:00:20.3]} 44. Kc5 {[%clk 0:00:22.8]} 44... g5 {[%clk 0:00:21.2]} 45. Kxb5
{[%clk 0:00:23.7]} 45... g4 {[%clk 0:00:21.8]} 46. Kc5 {[%clk 0:00:24.2]} 46...
g3 {[%clk 0:00:22.3]} 47. b4 {[%clk 0:00:24]} 47... g2 {[%clk 0:00:22.8]} 48. b5
{[%clk 0:00:24.9]} 48... g1=Q {[%clk 0:00:23.6]} 49. b6 {[%clk 0:00:25.8]} 49...
Qxe3+ {[%clk 0:00:24]} 50. Kc6 {[%clk 0:00:25]} 50... Qxb6+ {[%clk 0:00:24.5]}
51. Kxb6 {[%clk 0:00:25.9]} 51... d4 {[%clk 0:00:25.1]} 52. Kc5 {[%clk
0:00:26.8]} 52... d3 {[%clk 0:00:25.7]} 53. Kd5 {[%clk 0:00:27.7]} 53... d2
{[%clk 0:00:26.3]} 54. Ke5 {[%clk 0:00:28.6]} 54... Kg4 {[%clk 0:00:26.2]} 0-1